bitfinex/quotes_ETHUSD_20240710
["timestamp","ask_amount","ask_price","bid_price","bid_amount"]
[1720591391765,2.4941,3114.6,3114.1,0.19909854]
[1720591393299,2.55827133,3114.6,3113.6,9.827293]
[1720591393503,2.4941,3114.6,3113.6,9.827293]
[1720591394114,2.55827133,3114.6,3113.6,9.827293]
[1720591394321,2.55827133,3114.6,3113.6,7.47]
[1720591394817,2.4941,3114.6,3113.6,7.47]
[1720591395110,2.4941,3114.6,3113.3,7.47]
[1720591395111,2.3999,3114.5,3113.3,7.47]
[1720591395479,2.3999,3114.5,3113.3,9.3972]
[1720591395827,2.3999,3114.5,3113.4,2.15572]
[1720591397476,2.3999,3114.5,3113.3,7.47]
[1720591397673,2.32517133,3114.4,3113.0,7.47]
[1720591397993,2.32517133,3114.3,3112.7,7.47]
[1720591398178,2.261,3114.1,3112.7,7.47]
[1720591398373,2.261,3113.9,3112.7,7.47]
[1720591400013,2.32517133,3113.9,3112.7,7.47]
[1720591400224,2.3982,3113.7,3112.3,7.47]
[1720591400381,2.461,3113.5,3112.2,1.92784]
[1720591400581,2.461,3113.3,3112.0,9.398]
[1720591400782,0.31668846,3113.2,3112.1,2.1558]
[1720591401001,0.06417133,3113.2,3112.1,2.1558]
[1720591401822,2.461,3113.3,3112.1,2.1558]
[1720591401981,0.55,3113.2,3112.0,7.47]
[1720591402320,2.2905,3113.1,3112.0,7.47]
[1720591402813,5.2905,3113.1,3112.0,7.47]
[1720591402980,0.58405,3113.0,3112.0,7.47]
[1720591403173,0.58405,3113.0,3111.8,1.92813]
[1720591403602,5.2905,3113.1,3112.0,1.92802]
[1720591403917,5.2905,3113.1,3112.1,1.92795]
[1720591403918,2.2905,3113.1,3112.1,1.92795]
[1720591404209,2.2905,3113.1,3112.2,0.192795]
[1720591405205,2.2905,3113.1,3111.8,2.572]
[1720591405501,0.06417133,3113.0,3111.7,9.39819]
[1720591405692,0.06417133,3113.0,3111.8,1.92813]
[1720591405893,0.29963846,3113.0,3111.9,1.132632]
[1720591406292,0.23546713,3113.0,3111.9,1.132632]
[1720591406487,2.2905,3113.1,3111.9,3.060682]
[1720591406715,2.2905,3113.1,3112.0,3.0]
[1720591408217,2.2905,3113.1,3112.0,3.06425601]
[1720591408444,2.2905,3113.1,3111.9,1.132632]
[1720591408445,2.2905,3113.1,3111.9,4.132632]
[1720591408651,2.2905,3113.1,3112.1,1.92794]
[1720591411237,2.2905,3113.1,3112.0,2.7912862]
[1720591411927,2.2905,3113.1,3112.0,0.8632762]
[1720591412123,3.06417133,3114.0,3111.9,6.060712]
[1720591412124,2.4577,3112.9,3111.9,6.060712]
[1720591413275,3.06417133,3113.6,3111.7,7.47]
[1720591413276,0.06417133,3112.8,3111.7,7.47]
[1720591413482,2.4209,3112.8,3111.7,7.47]
[1720591414785,2.4677,3112.6,3111.0,7.47]
[1720591414958,2.4677,3112.4,3110.9,1.92864]
[1720591415161,2.4677,3112.4,3111.0,0.43157384]
[1720591415471,2.4677,3112.4,3110.7,7.47]
[1720591415472,2.4677,3112.2,3110.7,7.47]
[1720591415671,2.4677,3112.0,3110.7,7.47]
[1720591415981,2.4677,3112.0,3110.4,7.47]
[1720591415982,2.4677,3111.8,3110.4,7.47]
[1720591416283,2.4677,3111.8,3110.2,2.572]
[1720591416284,0.06417133,3111.7,3110.2,1.92913]
[1720591416478,0.34267718,3111.7,3110.3,0.939913]
[1720591416666,2.3876,3111.6,3110.3,0.939913]
[1720591416870,2.3876,3111.6,3110.1,7.47]
[1720591416871,2.3876,3111.4,3110.1,7.47]
[1720591417187,2.3876,3111.2,3110.1,7.47]
[1720591417388,0.06417133,3111.1,3110.1,7.47]
[1720591417677,0.24517713,3111.0,3109.8,7.47]
[1720591418762,0.06417133,3110.9,3109.8,7.47]
[1720591421088,0.50477368,3110.7,3109.8,7.47]
[1720591421282,0.50477368,3110.7,3109.9,0.747]
[1720591422946,0.50477368,3110.7,3109.8,7.47]
[1720591422947,2.45527133,3110.6,3109.5,7.47]
[1720591423349,2.3911,3110.6,3109.5,7.47]
[1720591423552,0.06417133,3110.5,3109.5,7.47]
[1720591423788,0.36017583,3110.5,3109.5,7.47]
[1720591423961,0.2960045,3110.5,3109.5,7.47]
[1720591424168,0.36017583,3110.5,3109.5,7.47]
[1720591424899,0.55,3110.4,3109.5,7.47]
[1720591425191,0.06417133,3110.3,3109.2,7.47]
[1720591425506,0.45518891,3110.3,3109.2,7.47]
[1720591425664,0.06417133,3110.2,3109.2,7.47]
[1720591425856,0.39101758,3110.3,3109.2,7.47]
[1720591426207,0.55,3110.2,3109.2,8.5920194]
[1720591428254,2.4561,3110.1,3109.2,8.5920194]
[1720591428461,2.4561,3110.1,3109.2,7.47]
[1720591429794,2.4561,3110.1,3109.3,1.92968]
[1720591431862,2.4561,3110.1,3109.2,9.39974]
[1720591432472,2.4561,3110.1,3109.2,7.47]
[1720591432770,0.24561,3110.0,3109.2,7.47]
[1720591432992,2.4561,3110.1,3109.2,7.47]
[1720591434005,2.4561,3110.1,3109.3,1.92969]
[1720591434368,2.4561,3110.1,3109.2,7.47]
[1720591434565,0.61417133,3110.0,3108.9,7.47]
[1720591434875,2.3024,3109.9,3108.9,7.47]
[1720591435074,0.78665713,3109.8,3108.9,7.47]
[1720591436500,2.4599,3109.7,3108.9,7.47]
[1720591436702,2.4599,3109.7,3108.4,4.93022]
[1720591436703,2.4599,3109.7,3108.5,9.40018]
[1720591436907,2.4599,3109.7,3108.6,3.0]
[1720591438678,2.4599,3109.7,3108.5,7.47]
[1720591438891,2.4261,3109.5,3108.5,7.47]
[1720591439083,0.36178133,3109.4,3108.5,7.47]
[1720591439482,0.55,3109.3,3108.1,7.47]
[1720591439788,0.55,3109.3,3107.3,1.93087]
[1720591439789,2.49027133,3109.2,3107.5,7.47]
[1720591439993,0.55,3109.1,3107.6,1.93074]
[1720591440165,0.36819846,3109.0,3107.6,1.93074]
[1720591440366,2.4261,3108.9,3107.7,2.572]
[1720591440567,2.4261,3108.9,3108.1,1.93043]
[1720591440776,2.4261,3108.9,3108.1,4.50243]
[1720591441308,2.3996,3110.0,3108.3,1.93031]
[1720591441520,2.3996,3110.0,3108.6,1.93011]
[1720591441808,2.3996,3110.0,3108.6,1.99443947]
[1720591442021,5.3996,3110.0,3108.9,1.92993]
[1720591442169,3.0,3109.9,3109.0,0.192993]
[1720591442374,2.3996,3110.0,3109.0,0.192993]
[1720591442579,2.3996,3110.0,3109.0,2.18714544]
[1720591442892,0.06417133,3110.6,3109.3,2.572]
[1720591442893,2.3658,3110.6,3109.3,2.572]
[1720591443093,2.3658,3110.6,3109.6,1.9295]
[1720591443392,0.50477368,3110.7,3110.2,1.92913]
[1720591443596,0.50477368,3110.7,3110.3,1.92905]
[1720591444300,0.50477368,3110.7,3110.4,1.929]
[1720591444512,0.50477368,3110.7,3110.5,0.06428497]
[1720591444673,2.3142,3111.6,3110.7,1.92882]
[1720591444868,0.50465693,3111.4,3110.8,0.06428469]
[1720591445109,0.50465693,3111.4,3110.7,1.92882]
[1720591445480,0.50465693,3111.4,3110.5,2.1925185]
[1720591445481,0.50465693,3111.4,3110.8,1.99303472]
[1720591445689,0.50465693,3111.4,3110.9,0.19930347]
[1720591446772,0.50465693,3111.4,3110.8,1.92875]
[1720591447382,0.50465693,3111.4,3110.6,1.92886]
[1720591448302,0.50465693,3111.4,3110.7,1.92881]
[1720591449630,0.06417133,3111.3,3110.0,1.92921]
[1720591449910,0.50465693,3111.4,3110.0,1.92921]
[1720591449911,0.50465693,3111.4,3110.0,3.3]
[1720591450086,0.50465693,3111.4,3110.7,1.92882]
[1720591450288,0.50465693,3111.4,3110.8,0.06428477]
[1720591450508,0.50465693,3111.4,3110.8,0.52079525]
[1720591452288,0.50465693,3111.4,3110.9,0.06428476]
[1720591452486,0.50465693,3111.4,3111.3,3.8569]
[1720591452685,7.46,3113.2,3111.9,1.92807]
[1720591452925,6.9384083,3114.3,3112.0,0.06426102]
[1720591452926,2.469,3113.8,3112.0,0.06426102]
[1720591453122,2.469,3113.8,3112.4,1.92771]
[1720591454626,2.469,3113.8,3112.5,1.9919485]
[1720591454937,0.2469,3113.7,3112.5,2.12689485]
[1720591455152,0.2469,3113.7,3112.6,2.63624851]
[1720591455318,2.419,3114.2,3112.8,1.92751]
[1720591455515,2.419,3114.2,3112.9,1.92743]
[1720591456218,2.419,3114.2,3112.8,1.92751]
[1720591456420,0.2419,3114.1,3112.6,2.572]
[1720591456743,0.2419,3114.1,3112.5,0.19919485]
[1720591456944,0.06417133,3114.0,3112.9,1.92745]
[1720591457122,0.33667846,3114.0,3112.9,1.92745]
[1720591457849,0.27250713,3114.0,3112.9,1.92745]
[1720591458650,0.27250713,3114.0,3112.7,1.92757]
[1720591459446,0.27250713,3114.0,3112.3,0.06423917]
[1720591459447,0.33667846,3114.0,3112.3,1.92777]
[1720591459622,0.87725071,3113.9,3112.6,1.92764]
[1720591459822,0.32725071,3113.9,3112.6,1.92764]
[1720591460068,0.32725071,3113.9,3112.8,1.92747]
[1720591460356,0.32725071,3113.9,3112.9,0.192747]
[1720591460722,0.32725071,3113.9,3112.6,12.82864]
[1720591460952,0.32725071,3113.9,3112.6,9.39764]
[1720591461346,0.39142204,3113.9,3112.6,7.47]
[1720591462552,0.5043477,3113.6,3112.6,7.47]
[1720591462764,0.06417133,3113.5,3112.6,7.47]
[1720591463056,2.2529,3113.4,3112.6,7.47]
[1720591463262,0.23170713,3113.3,3111.9,7.47]
[1720591463473,0.23170713,3113.3,3112.1,1.92795]
[1720591465030,0.23170713,3113.3,3112.0,1.92801]
[1720591465236,0.24846071,3113.2,3112.0,1.92801]
[1720591465749,0.31263204,3113.2,3111.8,3.0375123]
[1720591466324,2.2809,3113.1,3111.6,7.47]
[1720591466535,2.2809,3112.9,3111.6,7.47]
[1720591466755,0.06417133,3112.8,3111.6,7.47]
[1720591466940,0.55,3112.7,3111.6,7.47]
[1720591467138,0.06417133,3112.6,3111.6,7.47]
[1720591467357,0.06417133,3112.6,3111.3,9.39844]
[1720591467537,0.06417133,3112.6,3111.3,11.554284]
[1720591467736,0.06417133,3112.6,3111.3,7.47]
[1720591468028,0.55,3112.5,3111.3,7.47]
[1720591468242,0.06417133,3112.4,3111.3,7.47]
[1720591469078,3.0,3112.8,3111.3,7.47]
[1720591469370,0.06417133,3112.7,3111.3,9.3984]
[1720591469570,0.06417133,3112.7,3111.3,7.47]
[1720591470568,0.55,3112.6,3111.3,7.47]
[1720591470770,2.39497133,3112.5,3111.3,7.47]
[1720591470970,0.29449713,3112.4,3111.3,7.47]
[1720591471170,2.2714,3112.2,3110.8,7.47]
[1720591471369,0.06417133,3112.1,3110.5,7.47]
[1720591471571,0.78355713,3112.0,3110.5,9.625905]
[1720591471870,0.06417133,3111.9,3110.5,9.625905]
[1720591472210,0.06417133,3111.9,3110.4,12.16]
[1720591472211,3.431,3110.9,3109.3,7.47]
[1720591472363,3.431,3110.9,3108.9,7.13321383]
[1720591472364,2.67867133,3110.8,3108.9,7.13321383]
[1720591472538,2.2858,3110.6,3108.9,7.13321383]
[1720591472738,0.61417133,3110.5,3108.9,7.13321383]
[1720591473164,0.61417133,3110.5,3109.0,0.71332138]
[1720591473165,0.28999713,3110.4,3109.0,0.71332138]
[1720591473347,0.61417133,3110.3,3109.0,0.71332138]
[1720591473671,0.06417133,3110.2,3109.0,0.71332138]
[1720591473851,0.55,3110.1,3109.0,0.71332138]
[1720591474264,0.55,3110.1,3108.9,7.13321383]
[1720591474450,0.06417133,3110.0,3108.9,7.13321383]
[1720591477379,0.28999713,3110.4,3108.9,7.13321383]
[1720591477557,0.55,3110.3,3108.9,7.13321383]
[1720591478381,0.55,3110.3,3108.7,1.93001]
[1720591478551,0.06417133,3110.2,3108.7,1.93001]
[1720591479171,0.55,3110.3,3108.8,1.93]
[1720591481554,0.28999713,3110.4,3109.0,1.92987]
[1720591482278,0.28999713,3110.4,3108.8,1.93]
[1720591482479,0.28999713,3110.4,3108.9,1.92994]
[1720591482775,0.33541685,3110.3,3108.9,1.92994]
[1720591483378,3.0,3110.5,3109.0,1.92987]
[1720591483583,2.2858,3110.6,3109.3,1.92968]
[1720591483746,2.2858,3110.6,3109.4,0.25727679]
[1720591484777,2.2858,3110.6,3109.4,2.18689679]
[1720591484979,2.2858,3110.6,3109.4,2.122538]
[1720591485282,2.2858,3110.6,3109.5,1.99385487]
[1720591485967,2.2858,3110.6,3109.5,1.92955]
[1720591486165,2.2858,3110.6,3109.6,0.4052088]
[1720591486680,2.2858,3110.6,3109.4,2.122538]
[1720591486681,2.2858,3110.6,3109.4,0.192968]
[1720591487386,2.2858,3110.6,3109.3,1.92968]
[1720591487887,2.2858,3110.6,3109.4,1.9296]
[1720591488085,2.2858,3110.6,3109.5,1.92956]
[1720591488274,2.2858,3110.6,3109.5,1.99386801]
[1720591488491,2.2858,3110.6,3109.6,0.3923468]
[1720591488979,2.2858,3110.6,3109.7,0.06430703]
[1720591490190,2.2858,3110.6,3109.6,2.3218268]
[1720591490349,2.2858,3110.6,3109.6,0.3923468]
[1720591490553,2.2858,3110.6,3109.4,1.9296]
[1720591490754,2.2858,3110.6,3109.4,4.9296]
[1720591491154,0.50483225,3110.4,3109.4,4.9296]
[1720591493185,0.50483225,3110.4,3109.5,1.92956]
[1720591493391,0.50483225,3110.4,3109.6,0.06430501]
[1720591493584,0.50483225,3110.4,3109.7,0.1993865]
[1720591493775,0.50483225,3110.4,3109.8,0.064305]
[1720591494084,0.50483225,3110.4,3109.7,0.1993865]
[1720591495290,0.50483225,3110.4,3110.2,1.92911]
[1720591495490,0.50483225,3110.4,3109.7,2.5910865]
[1720591495491,0.50483225,3110.4,3110.3,1.99336346]
[1720591495787,0.50483225,3110.4,3110.3,3.85814]
[1720591495968,0.50483225,3110.4,3110.3,6.85814]
[1720591497381,0.45338096,3110.4,3110.3,8.78721]
[1720591497581,2.3772,3111.8,3111.0,1.92862]
[1720591497993,2.3772,3111.8,3111.1,0.06427648]
[1720591498293,0.50463739,3111.7,3111.1,0.06427648]
[1720591498864,0.50463739,3111.7,3111.0,1.92862]
[1720591499165,0.50463739,3111.7,3110.8,4.92875]
[1720591499473,0.50463739,3111.7,3110.9,2.421555]
[1720591499663,0.50463739,3111.7,3110.9,2.48583149]
[1720591500477,0.50463739,3111.7,3110.9,0.492875]
[1720591501669,0.50463739,3111.7,3110.9,2.421565]
[1720591502091,0.50463739,3111.7,3110.9,0.492875]
[1720591502594,0.50463739,3111.7,3111.0,0.06428024]
[1720591502798,0.50463739,3111.7,3111.1,0.24858052]
[1720591503004,0.50463739,3111.7,3111.2,0.06427652]
[1720591503216,0.50463739,3111.7,3111.3,0.06427648]
[1720591503369,0.50463739,3111.7,3111.6,3.85652]
[1720591503569,0.50463739,3111.7,3111.6,7.8943897]
[1720591503771,0.50463739,3111.7,3111.6,7.83012799]
[1720591505006,2.4599,3113.1,3112.3,1.92778]
[1720591505216,2.4599,3113.1,3112.4,1.92776]
[1720591505504,0.50443303,3113.0,3112.4,2.120536]
[1720591506125,0.50443303,3113.0,3112.4,0.192776]
[1720591506345,0.50443303,3113.0,3112.1,1.92795]
[1720591507302,0.50443303,3113.0,3112.0,4.92797]
[1720591507506,0.50443303,3113.0,3112.1,0.06425321]
[1720591508147,0.50443303,3113.0,3112.1,1.99219321]
[1720591508301,0.50443303,3113.0,3112.2,0.49921932]
[1720591509147,0.50443303,3113.0,3112.3,0.06425322]
[1720591509437,0.50443303,3113.0,3112.5,1.92771]
[1720591510493,0.50443303,3113.0,3112.3,4.99205322]
[1720591510696,0.50443303,3113.0,3112.3,3.06425322]
[1720591510929,0.50443303,3113.0,3112.4,0.54913525]
[1720591511240,0.50443303,3113.0,3112.5,0.06424538]
[1720591511399,0.50443303,3113.0,3112.5,1.99194538]
[1720591511822,0.50443303,3113.0,3112.6,1.92763]
[1720591512022,0.50443303,3113.0,3112.7,0.06424313]
[1720591512232,0.50443303,3113.0,3112.4,1.92773]
[1720591512524,0.50443303,3113.0,3112.4,0.492782]
[1720591512729,0.50443303,3113.0,3112.5,1.9277]
[1720591514425,0.50443303,3113.0,3112.5,1.99194338]
[1720591515525,0.50443303,3113.0,3112.6,1.92764]
[1720591516231,0.50443303,3113.0,3112.5,0.7710712]
[1720591517003,0.50443303,3113.0,3112.5,2.6987612]
[1720591518417,0.50443303,3113.0,3112.5,0.7710712]
[1720591518637,0.50443303,3113.0,3112.5,2.6987712]
[1720591518834,0.50443303,3113.0,3112.6,0.26987712]
[1720591519267,0.50443303,3113.0,3112.3,1.92782]
[1720591519418,0.50443303,3113.0,3112.2,3.0]
[1720591519822,0.50443303,3113.0,3112.2,4.92788]
[1720591520072,0.50443303,3113.0,3112.3,1.92782]
[1720591521772,0.50443303,3113.0,3112.3,1.99206798]
[1720591521977,0.50443303,3113.0,3112.4,0.4992068]
[1720591525874,0.50443303,3113.0,3112.5,1.99189799]
[1720591526491,0.50443303,3113.0,3112.5,1.92765]
[1720591527590,0.50443303,3113.0,3112.4,0.4992068]
[1720591529961,0.50443303,3113.0,3112.1,2.574]
[1720591530163,0.50443303,3113.0,3111.9,9.06128383]
[1720591530424,0.06417133,3112.9,3112.0,3.0]
[1720591530583,2.4878,3112.8,3112.0,4.50612838]
[1720591531304,2.4878,3112.8,3112.0,6.43413838]
[1720591532316,2.4878,3112.8,3112.1,1.92795]
[1720591532977,2.4878,3112.8,3112.0,4.50612838]
[1720591533822,2.4878,3112.8,3112.0,6.43413838]
[1720591535015,2.4878,3112.8,3112.1,1.35673522]
[1720591535614,2.4878,3112.8,3112.1,3.28468522]
[1720591535830,0.50443303,3113.0,3112.3,1.92778]
[1720591536146,0.50443303,3113.0,3112.4,0.0642474]
[1720591536299,0.50443303,3113.0,3112.4,0.26345014]
[1720591536824,0.50443303,3113.0,3112.5,1.92766]
[1720591537515,0.50443303,3113.0,3112.6,0.06424489]
[1720591537697,0.50443303,3113.0,3112.5,1.99190489]
[1720591537897,0.50443303,3113.0,3112.6,0.21911076]
[1720591538930,0.50443303,3113.0,3112.7,0.06424457]
[1720591542649,0.50443303,3113.0,3112.9,1.92746]
[1720591543501,0.50443303,3113.0,3112.9,3.85492]
[1720591545042,0.50443303,3113.0,3112.9,1.92746]
[1720591545197,0.50443303,3113.0,3112.9,2.562694]
[1720591545838,0.50443303,3113.0,3112.9,0.635234]
[1720591546001,0.50443303,3113.0,3112.8,1.92752]
[1720591550316,0.50333303,3113.0,3112.8,1.92752]
[1720591552148,0.50333303,3113.0,3112.7,3.0]
[1720591552440,0.50333303,3113.0,3112.7,1.92758]
[1720591552657,0.50333303,3113.0,3112.8,0.492758]
[1720591552804,0.50333303,3113.0,3112.7,1.92758]
[1720591553003,0.50333303,3113.0,3112.8,1.92752]
[1720591554854,0.50333303,3113.0,3112.7,1.92756]
[1720591555024,0.50333303,3113.0,3112.7,2.677724]
[1720591556308,0.50333303,3113.0,3112.6,3.0]
[1720591556511,0.50333303,3113.0,3112.5,1.99189292]
[1720591558248,0.50333303,3113.0,3112.5,0.06424292]
[1720591558416,0.50333303,3113.0,3112.9,1.92746]
[1720591559246,0.50333303,3113.0,3112.7,1.92753]
[1720591559453,0.50333303,3113.0,3112.6,4.92763]
[1720591559757,0.50333303,3113.0,3112.7,3.0]
[1720591560149,0.50333303,3113.0,3112.6,4.92763]
[1720591560360,2.85753303,3113.0,3112.3,7.13321383]
[1720591560565,3.14328633,3113.0,3112.3,7.13321383]
[1720591560706,0.71675623,3112.9,3112.3,7.13321383]
[1720591561110,0.71675623,3112.9,3111.9,7.13321383]
[1720591561307,0.78092756,3112.9,3111.9,7.13321383]
[1720591561546,0.39242139,3112.8,3111.9,7.13321383]
[1720591561750,2.3006,3112.7,3111.9,7.13321383]
[1720591561917,0.71675623,3112.6,3111.9,7.13321383]
[1720591562325,0.50333303,3113.0,3112.1,1.92795]
[1720591562549,0.50333303,3113.0,3112.2,0.25704474]
[1720591562750,0.50333303,3113.0,3112.2,0.192795]
[1720591563328,0.50333303,3113.0,3112.2,3.192795]
[1720591563655,0.50333303,3113.0,3112.4,1.92772]
[1720591563858,0.50333303,3113.0,3112.5,0.19919637]
[1720591564044,0.50333303,3113.0,3112.5,0.26344011]
[1720591564372,0.50333303,3113.0,3112.5,0.19919637]
[1720591564666,0.50333303,3113.0,3112.5,2.12689637]
[1720591565363,0.50333303,3113.0,3112.6,0.06424392]
[1720591565528,0.50333303,3113.0,3112.7,0.21911403]
[1720591567957,0.50333303,3113.0,3112.2,5.120685]
[1720591567958,0.50333303,3113.0,3112.3,0.06424802]
[1720591568134,0.50333303,3113.0,3112.3,1.99206892]
[1720591568341,0.50333303,3113.0,3112.5,2.574]
[1720591568536,0.50333303,3113.0,3112.7,1.92758]
[1720591568849,0.50333303,3113.0,3112.9,4.50146]
[1720591569049,0.50333303,3113.0,3112.9,5.15078106]
[1720591569250,0.50333303,3113.0,3112.9,8.15078106]
[1720591569453,0.50333303,3113.0,3112.9,8.21501582]
[1720591570686,0.50333303,3113.0,3112.9,8.15078106]
[1720591571183,0.50333303,3113.0,3112.9,10.07824106]
[1720591571478,0.33647552,3114.5,3113.4,1.9271]
[1720591571479,2.4189,3114.4,3113.4,1.9271]
[1720591571677,2.4189,3114.4,3113.2,1.92725]
[1720591571678,0.71634737,3114.3,3113.5,1.99130475]
[1720591571853,0.71634737,3114.3,3113.6,0.19913048]
[1720591572052,2.4189,3114.4,3113.7,0.06422371]
[1720591572578,2.4189,3114.4,3113.6,0.19913048]
[1720591572579,0.71639455,3114.3,3113.6,0.19913048]
[1720591573243,2.4189,3114.4,3113.6,0.19913048]
[1720591573464,2.4189,3114.4,3113.6,0.26335317]
[1720591573978,2.4189,3114.4,3113.6,0.19913048]
[1720591574274,2.69443755,3114.4,3113.3,1.9272]
[1720591574440,2.69443755,3114.4,3113.4,1.92715]
[1720591574844,0.06417133,3114.3,3113.1,7.13321383]
[1720591575054,1.08350283,3114.3,3113.1,7.13321383]
[1720591575384,1.08350283,3114.3,3113.1,9.06054383]
[1720591575385,0.06417133,3114.2,3113.1,9.06054383]
[1720591575967,1.01926852,3114.3,3113.1,7.13321383]
[1720591576173,2.3282,3114.0,3113.1,7.13321383]
[1720591576372,0.71617721,3113.9,3113.1,7.13321383]
[1720591576683,0.71617721,3113.9,3112.9,3.64932106]
[1720591577574,0.71617721,3113.9,3112.9,5.57677106]
[1720591579107,0.71626816,3113.8,3112.9,5.57677106]
[1720591579309,2.3282,3114.0,3113.0,1.27099849]
[1720591579464,0.71626044,3113.9,3113.0,3.19838849]
[1720591579673,2.59147552,3114.5,3113.3,1.92721]
[1720591579991,2.59147552,3114.5,3113.4,0.0642228]
[1720591579992,0.71626975,3114.4,3113.4,0.0642228]
[1720591580206,0.71626975,3114.4,3113.5,0.19914328]
[1720591580381,0.71626975,3114.4,3113.6,0.06422279]
[1720591581088,0.71626975,3114.4,3113.6,1.99124279]
[1720591581806,2.255,3114.5,3113.6,1.99124279]
[1720591581963,0.71619009,3114.4,3113.6,1.99124279]
[1720591582165,1.0133091,3114.4,3113.6,1.99124279]
[1720591582362,1.0133091,3114.4,3113.4,4.92712]
[1720591582809,1.0133091,3114.4,3113.4,3.0]
[1720591583127,1.0133091,3114.4,3113.3,1.92721]
[1720591585087,0.29711901,3114.4,3113.3,1.92721]
[1720591585295,0.2552119,3114.3,3113.3,1.92721]
[1720591585736,0.2552119,3114.3,3112.8,7.13321383]
[1720591585737,0.55,3114.2,3112.8,7.13321383]
[1720591585914,2.2885,3114.1,3112.8,7.13321383]
[1720591586085,1.62078757,3114.0,3112.8,7.13321383]
[1720591586279,0.71634911,3113.9,3112.8,7.13321383]
[1720591586480,0.55,3113.8,3112.8,7.13321383]
[1720591587924,0.71634911,3113.9,3112.9,1.92741]
[1720591588107,0.71634911,3113.8,3113.0,0.90606238]
[1720591588312,2.2885,3114.1,3113.0,0.90606238]
[1720591588514,0.71635844,3114.0,3113.0,0.90606238]
[1720591588870,0.71635844,3114.0,3113.1,0.28334724]
[1720591588997,0.71629871,3113.9,3113.1,0.28334724]
[1720591589176,2.2885,3114.1,3113.1,0.28334724]
[1720591589377,0.71623741,3114.0,3112.9,1.92741]
[1720591590403,0.71623741,3114.0,3112.8,7.13321383]
[1720591590601,0.71623741,3114.0,3112.8,9.06072383]
[1720591591206,0.06417133,3113.9,3112.8,7.13321383]
[1720591591425,2.305,3113.8,3112.4,7.13321383]
[1720591591736,2.305,3113.8,3112.1,1.92795]
[1720591591737,0.35608846,3113.7,3112.1,1.92795]
[1720591591946,2.4348,3113.5,3112.0,7.13321383]
[1720591592085,2.4348,3113.3,3112.0,7.13321383]
[1720591592442,2.4348,3113.1,3112.0,7.13321383]
[1720591592618,2.4516,3112.9,3111.6,7.13321383]
[1720591593343,0.71618168,3112.8,3111.8,1.92813]
[1720591593644,3.31782334,3113.6,3111.6,12.37692721]
[1720591593645,2.4416,3113.5,3111.9,4.50207]
[1720591593930,0.71617798,3113.4,3112.4,1.92776]
[1720591594090,0.71617798,3113.4,3112.2,1.92786]
[1720591594427,0.71617798,3113.4,3112.3,1.92782]
[1720591594730,1.03195578,3113.4,3112.4,0.192782]
[1720591594933,0.3157778,3113.4,3112.4,2.120552]
[1720591595156,0.7161541,3113.4,3112.6,1.92764]
[1720591595296,2.3413,3113.9,3112.8,1.92751]
[1720591595493,0.9502931,3113.8,3112.8,1.99174685]
[1720591595694,2.3413,3113.9,3112.9,1.92746]
[1720591596038,2.3413,3113.9,3113.0,0.06423625]
[1720591596531,2.3413,3113.9,3112.7,2.574]
[1720591596746,2.3413,3113.9,3112.8,0.06423644]
[1720591596950,2.3413,3113.9,3112.9,0.26382364]
[1720591597090,2.3413,3113.9,3113.0,0.06423629]
[1720591598433,2.3413,3113.9,3113.0,1.99162629]
[1720591598734,2.3661,3114.4,3113.1,1.92732]
[1720591598948,0.71614519,3114.3,3113.2,0.192732]
[1720591599230,0.71614519,3114.3,3113.3,1.92721]
[1720591599597,0.71614519,3114.3,3113.4,0.06422817]
[1720591599790,2.3661,3114.4,3113.5,0.19914382]
[1720591599988,0.33614474,3114.5,3113.6,0.06422224]
[1720591600713,0.33614474,3114.5,3113.5,1.9912528]
[1720591601552,0.06417133,3114.4,3113.2,5.119992]
[1720591601863,0.06417133,3114.4,3113.3,1.46438058]
[1720591602212,2.331,3114.3,3113.2,3.0]
[1720591602448,1.26579364,3114.2,3113.2,3.0]
[1720591604811,0.55,3114.2,3113.2,3.0]
[1720591605016,1.26559392,3114.2,3113.2,3.0]
[1720591605231,1.26559392,3114.2,3113.3,1.01332138]
[1720591605416,1.26559392,3114.2,3113.2,3.0]
[1720591608052,2.4986,3114.1,3112.8,7.13321383]
[1720591608257,2.4986,3113.9,3112.4,7.13321383]
[1720591608464,2.3273,3113.7,3112.4,7.13321383]
[1720591608760,0.78002873,3113.6,3112.4,7.13321383]
[1720591611115,3.78002873,3113.6,3112.0,7.13321383]
[1720591611343,2.3128,3113.4,3111.7,1.92814]
[1720591611562,2.3128,3113.2,3111.6,7.13321383]
[1720591611861,0.77998172,3113.1,3111.6,7.13321383]
[1720591612055,0.55,3113.0,3111.6,7.13321383]
[1720591612352,0.06417133,3112.9,3111.6,7.13321383]
[1720591612655,0.06417133,3112.9,3111.7,3.0]
[1720591612834,0.06417133,3112.9,3111.6,3.696212]
[1720591613428,2.4559,3112.7,3111.2,7.13321383]
[1720591613635,0.77998172,3112.6,3111.2,7.13321383]
[1720591613964,0.55,3112.5,3111.2,7.13321383]
[1720591614544,1.265611,3112.5,3111.2,7.13321383]
[1720591614761,0.55,3112.5,3111.3,1.92932138]
[1720591614916,1.26561638,3112.6,3111.3,1.92932138]
[1720591615116,0.06417133,3112.5,3111.2,7.13321383]
[1720591615340,0.55,3112.4,3111.2,7.13321383]
[1720591615542,0.06417133,3112.3,3111.2,7.13321383]
[1720591616156,2.9922,3112.2,3111.2,7.13321383]
[1720591616352,0.36980846,3112.1,3110.8,7.13321383]
[1720591616679,0.55,3112.0,3110.8,7.13321383]
[1720591616850,0.06417133,3111.9,3110.8,7.13321383]
[1720591617044,0.06417133,3111.9,3110.9,0.97072138]
[1720591617281,0.55,3112.0,3110.9,0.97072138]
[1720591618583,0.61417133,3112.0,3110.9,0.97072138]
[1720591618779,0.61417133,3112.0,3110.8,7.13321383]
[1720591619185,2.4913,3111.9,3110.8,7.13321383]
[1720591619348,2.4913,3111.7,3110.8,7.13321383]
[1720591619544,0.61417133,3111.6,3110.4,7.13321383]
[1720591619774,0.61417133,3111.6,3110.1,1.92919]